[Event "*** Titled Tuesday Blitz"]
[Site "Chess.com"]
[Date "2020.11.24"]
[Round "2"]
[White "RobertoJBM"]
[Black "enriquetejedor"]
[Result "1/2-1/2"]
[WhiteElo "2700"]
[BlackElo "2481"]
[TimeControl "180+1"]
[EndTime "10:35:53 PST"]
[Termination "Game drawn - insufficient material"]

1. d4 {[%clk 0:03:00.9]} 1... c6 {[%clk 0:02:59.7]} 2. e4 {[%clk 0:03:00]} 2...
d5 {[%clk 0:02:59.4]} 3. exd5 {[%clk 0:03:00]} 3... cxd5 {[%clk 0:02:59.7]} 4.
Bd3 {[%clk 0:03:00.5]} 4... Nf6 {[%clk 0:03:00]} 5. c3 {[%clk 0:03:00.2]} 5...
g6 {[%clk 0:02:59.7]} 6. Bf4 {[%clk 0:02:59.8]} 6... Bg7 {[%clk 0:03:00.6]} 7.
Nf3 {[%clk 0:03:00]} 7... O-O {[%clk 0:03:00.9]} 8. O-O {[%clk 0:03:00.3]} 8...
Nh5 {[%clk 0:02:59.9]} 9. Be3 {[%clk 0:02:58.6]} 9... Qc7 {[%clk 0:02:58]} 10.
Re1 {[%clk 0:02:57.9]} 10... Nf4 {[%clk 0:02:56.1]} 11. Bf1 {[%clk 0:02:58]}
11... Nc6 {[%clk 0:02:55.5]} 12. g3 {[%clk 0:02:55.8]} 12... Nh5 {[%clk
0:02:52.5]} 13. Nbd2 {[%clk 0:02:52.2]} 13... Bf5 {[%clk 0:02:47.1]} 14. Nb3
{[%clk 0:02:41.5]} 14... b6 {[%clk 0:02:42.5]} 15. Rc1 {[%clk 0:02:33.5]} 15...
Rac8 {[%clk 0:02:39.1]} 16. Be2 {[%clk 0:02:16.1]} 16... Nf6 {[%clk 0:02:33.1]}
17. Bf4 {[%clk 0:02:14]} 17... Qb7 {[%clk 0:02:33.2]} 18. Bd3 {[%clk 0:02:10.5]}
18... Bxd3 {[%clk 0:02:32.4]} 19. Qxd3 {[%clk 0:02:11.4]} 19... e6 {[%clk
0:02:32.5]} 20. Ne5 {[%clk 0:02:09.9]} 20... Nd7 {[%clk 0:02:31.4]} 21. Nxd7
{[%clk 0:02:07.2]} 21... Qxd7 {[%clk 0:02:32.3]} 22. Re2 {[%clk 0:02:04.3]}
22... f6 {[%clk 0:02:29.2]} 23. Rd1 {[%clk 0:02:01.2]} 23... e5 {[%clk
0:02:27.6]} 24. dxe5 {[%clk 0:02:00.8]} 24... fxe5 {[%clk 0:02:28.5]} 25. Be3
{[%clk 0:01:59.4]} 25... Rcd8 {[%clk 0:02:28.8]} 26. Red2 {[%clk 0:01:55]} 26...
Qe6 {[%clk 0:02:26.4]} 27. Qb5 {[%clk 0:01:52.6]} 27... Ne7 {[%clk 0:02:08.3]}
28. Bg5 {[%clk 0:01:40.3]} 28... Bf6 {[%clk 0:02:06.4]} 29. Bxf6 {[%clk
0:01:38.3]} 29... Rxf6 {[%clk 0:02:04.3]} 30. Re2 {[%clk 0:01:36.7]} 30... Qg4
{[%clk 0:01:31.7]} 31. Rde1 {[%clk 0:01:27.6]} 31... e4 {[%clk 0:01:31.6]} 32.
Nd4 {[%clk 0:01:25.1]} 32... Qd7 {[%clk 0:01:04.9]} 33. Qxd7 {[%clk 0:01:20.4]}
33... Rxd7 {[%clk 0:01:05.8]} 34. Rd1 {[%clk 0:01:21.2]} 34... Nf5 {[%clk
0:01:04.2]} 35. Nb3 {[%clk 0:01:13.8]} 35... Rfd6 {[%clk 0:00:59.5]} 36. Kg2
{[%clk 0:01:05.6]} 36... Kf7 {[%clk 0:00:58.5]} 37. f3 {[%clk 0:01:00.3]} 37...
Re7 {[%clk 0:00:46.8]} 38. fxe4 {[%clk 0:00:47.9]} 38... Rxe4 {[%clk 0:00:46.5]}
39. Rxe4 {[%clk 0:00:39.2]} 39... dxe4 {[%clk 0:00:47.4]} 40. Re1 {[%clk
0:00:34.7]} 40... e3 {[%clk 0:00:35.6]} 41. g4 {[%clk 0:00:34.5]} 41... Rd2+
{[%clk 0:00:32.7]} 42. Kf3 {[%clk 0:00:26.7]} 42... Rf2+ {[%clk 0:00:16.4]} 43.
Ke4 {[%clk 0:00:25.3]} 43... Nd6+ {[%clk 0:00:08.9]} 44. Kxe3 {[%clk 0:00:25.3]}
44... Rxb2 {[%clk 0:00:09.4]} 45. Re2 {[%clk 0:00:18.7]} 45... Rb1 {[%clk
0:00:07.8]} 46. Nd4 {[%clk 0:00:17.3]} 46... Rc1 {[%clk 0:00:06.2]} 47. Kd3
{[%clk 0:00:17.2]} 47... Rd1+ {[%clk 0:00:05.9]} 48. Kc2 {[%clk 0:00:17.1]}
48... Rg1 {[%clk 0:00:05.8]} 49. h3 {[%clk 0:00:16.8]} 49... Rg3 {[%clk
0:00:05.2]} 50. Nc6 {[%clk 0:00:16.3]} 50... Nb5 {[%clk 0:00:03.7]} 51. Ne5+
{[%clk 0:00:13.9]} 51... Kg7 {[%clk 0:00:03.7]} 52. Nd3 {[%clk 0:00:14.6]} 52...
Rxh3 {[%clk 0:00:03.7]} 53. a4 {[%clk 0:00:13.6]} 53... Nd6 {[%clk 0:00:03.9]}
54. Re7+ {[%clk 0:00:13.1]} 54... Kf6 {[%clk 0:00:04.2]} 55. Rxa7 {[%clk
0:00:13]} 55... Rh2+ {[%clk 0:00:04.2]} 56. Kb3 {[%clk 0:00:12.8]} 56... Rh3
{[%clk 0:00:04.5]} 57. Nb4 {[%clk 0:00:13.3]} 57... Ne4 {[%clk 0:00:04.6]} 58.
Na2 {[%clk 0:00:09.2]} 58... Rg3 {[%clk 0:00:03]} 59. Kb4 {[%clk 0:00:08.3]}
59... Rxg4 {[%clk 0:00:02.7]} 60. Kb5 {[%clk 0:00:07]} 60... Rg2 {[%clk
0:00:02.4]} 61. Nb4 {[%clk 0:00:06]} 61... Nxc3+ {[%clk 0:00:02.2]} 62. Kc4
{[%clk 0:00:06.9]} 62... Ne4 {[%clk 0:00:02.2]} 63. Nd5+ {[%clk 0:00:07.4]}
63... Kg5 {[%clk 0:00:02.6]} 64. Ne3 {[%clk 0:00:07.5]} 64... Rd2 {[%clk
0:00:01.8]} 65. Ra6 {[%clk 0:00:06.9]} 65... Re2 {[%clk 0:00:02.1]} 66. Kd3
{[%clk 0:00:06.9]} 66... Re1 {[%clk 0:00:01.7]} 67. Kxe4 {[%clk 0:00:06.7]}
67... Rb1 {[%clk 0:00:02]} 68. Nd5 {[%clk 0:00:06.2]} 68... b5 {[%clk
0:00:01.4]} 69. a5 {[%clk 0:00:06.6]} 69... b4 {[%clk 0:00:01.8]} 70. Kd4 {[%clk
0:00:06.4]} 70... b3 {[%clk 0:00:02]} 71. Kc3 {[%clk 0:00:07]} 71... h5 {[%clk
0:00:02.4]} 72. Nb4 {[%clk 0:00:07]} 72... h4 {[%clk 0:00:02.2]} 73. Nd3 {[%clk
0:00:07.9]} 73... h3 {[%clk 0:00:02.1]} 74. Ra8 {[%clk 0:00:06.3]} 74... h2
{[%clk 0:00:02.5]} 75. Rh8 {[%clk 0:00:07.2]} 75... h1=Q {[%clk 0:00:02.9]} 76.
Rxh1 {[%clk 0:00:07.9]} 76... Rxh1 {[%clk 0:00:03.5]} 77. Kxb3 {[%clk
0:00:08.8]} 77... Ra1 {[%clk 0:00:03.4]} 78. Kb4 {[%clk 0:00:08.8]} 78... Kh4
{[%clk 0:00:03.9]} 79. Ne5 {[%clk 0:00:09.1]} 79... g5 {[%clk 0:00:04]} 80. Kb5
{[%clk 0:00:09.7]} 80... g4 {[%clk 0:00:04.2]} 81. Nxg4 {[%clk 0:00:09.8]} 81...
Kxg4 {[%clk 0:00:04.1]} 82. Kb6 {[%clk 0:00:10.7]} 82... Rb1+ {[%clk 0:00:03.8]}
83. Kc7 {[%clk 0:00:09.1]} 83... Ra1 {[%clk 0:00:03.8]} 84. Kb6 {[%clk
0:00:09.4]} 84... Rb1+ {[%clk 0:00:03.3]} 85. Kc6 {[%clk 0:00:09.7]} 85... Kf5
{[%clk 0:00:04.2]} 86. a6 {[%clk 0:00:09.9]} 86... Ra1 {[%clk 0:00:04.5]} 87.
Kb7 {[%clk 0:00:09.7]} 87... Rb1+ {[%clk 0:00:02.5]} 88. Kc7 {[%clk 0:00:08.8]}
88... Ra1 {[%clk 0:00:02.4]} 89. Kb7 {[%clk 0:00:09.2]} 89... Ke6 {[%clk
0:00:03]} 90. a7 {[%clk 0:00:09.5]} 90... Kd7 {[%clk 0:00:02.2]} 91. a8=Q {[%clk
0:00:09.3]} 91... Rb1+ {[%clk 0:00:02]} 92. Ka7 {[%clk 0:00:09.4]} 92... Ra1+
{[%clk 0:00:01.8]} 93. Kb8 {[%clk 0:00:10.3]} 93... Rxa8+ {[%clk 0:00:01.3]} 94.
Kxa8 {[%clk 0:00:10.6]} 1/2-1/2

[Event "*** Titled Tuesday Blitz"]
[Site "Chess.com"]
[Date "2020.11.24"]
[Round "2"]
[White "BegmuratovKh2010"]
[Black "TigrVShlyape"]
[Result "0-1"]
[WhiteElo "2513"]
[BlackElo "2811"]
[TimeControl "180+1"]
[EndTime "10:36:09 PST"]
[Termination "TigrVShlyape won by checkmate"]

1. d4 {[%clk 0:02:58.6]} 1... Nf6 {[%clk 0:02:59.2]} 2. Nf3 {[%clk 0:02:57.9]}
2... g6 {[%clk 0:02:56.7]} 3. c4 {[%clk 0:02:57.8]} 3... Bg7 {[%clk 0:02:55.6]}
4. g3 {[%clk 0:02:57.8]} 4... d6 {[%clk 0:02:55.5]} 5. Bg2 {[%clk 0:02:57.5]}
5... O-O {[%clk 0:02:55.7]} 6. O-O {[%clk 0:02:57.2]} 6... Nc6 {[%clk
0:02:54.6]} 7. Nc3 {[%clk 0:02:55.8]} 7... a5 {[%clk 0:02:54.7]} 8. e4 {[%clk
0:02:55.4]} 8... e5 {[%clk 0:02:47.3]} 9. d5 {[%clk 0:02:51.3]} 9... Nb8 {[%clk
0:02:46.6]} 10. Ne1 {[%clk 0:02:47.1]} 10... Na6 {[%clk 0:02:43.7]} 11. Nd3
{[%clk 0:02:44.8]} 11... Nd7 {[%clk 0:02:41.6]} 12. h4 {[%clk 0:02:40.1]} 12...
Ndc5 {[%clk 0:02:40]} 13. Be3 {[%clk 0:02:27.3]} 13... f5 {[%clk 0:02:30.8]} 14.
Nxc5 {[%clk 0:01:55.2]} 14... Nxc5 {[%clk 0:02:26.7]} 15. Bxc5 {[%clk
0:01:54.4]} 15... dxc5 {[%clk 0:02:25]} 16. d6 {[%clk 0:01:48.3]} 16... Qxd6
{[%clk 0:02:18.2]} 17. Qxd6 {[%clk 0:01:46.4]} 17... cxd6 {[%clk 0:02:17.9]} 18.
Rad1 {[%clk 0:01:46.1]} 18... Ra6 {[%clk 0:02:15]} 19. Rd3 {[%clk 0:01:19.3]}
19... f4 {[%clk 0:02:06.3]} 20. Rfd1 {[%clk 0:01:13.6]} 20... Bg4 {[%clk
0:02:03.8]} 21. f3 {[%clk 0:01:11.6]} 21... Be6 {[%clk 0:02:02.2]} 22. Rxd6
{[%clk 0:00:43.3]} 22... fxg3 {[%clk 0:01:51.1]} 23. b3 {[%clk 0:00:36.2]} 23...
Rxd6 {[%clk 0:01:42.8]} 24. Rxd6 {[%clk 0:00:37.1]} 24... Re8 {[%clk 0:01:36.5]}
25. Nd5 {[%clk 0:00:20.4]} 25... Bc8 {[%clk 0:01:11.4]} 26. Rb6 {[%clk
0:00:11.9]} 26... Kf8 {[%clk 0:01:05.2]} 27. Rb5 {[%clk 0:00:11]} 27... Bh6
{[%clk 0:00:57.4]} 28. Rxc5 {[%clk 0:00:09]} 28... Bd2 {[%clk 0:00:56.2]} 29.
Rc7 {[%clk 0:00:08.3]} 29... Be6 {[%clk 0:00:40.5]} 30. Nf6 {[%clk 0:00:07.2]}
30... Re7 {[%clk 0:00:31.1]} 31. Nxh7+ {[%clk 0:00:07.1]} 31... Ke8 {[%clk
0:00:31]} 32. Nf6+ {[%clk 0:00:06.4]} 32... Kf7 {[%clk 0:00:30.7]} 33. Nd5
{[%clk 0:00:05.9]} 33... Rxc7 {[%clk 0:00:29]} 34. Nxc7 {[%clk 0:00:06.8]} 34...
Bd7 {[%clk 0:00:28.9]} 35. Nd5 {[%clk 0:00:07]} 35... Kg7 {[%clk 0:00:27.3]} 36.
Bf1 {[%clk 0:00:06.6]} 36... Kh6 {[%clk 0:00:26.1]} 37. Kg2 {[%clk 0:00:06.7]}
37... Be1 {[%clk 0:00:26]} 38. Nf6 {[%clk 0:00:05.6]} 38... Be6 {[%clk
0:00:25.9]} 39. Ng4+ {[%clk 0:00:04.7]} 39... Kh5 {[%clk 0:00:21.3]} 40. Nxe5
{[%clk 0:00:05.6]} 40... Kxh4 {[%clk 0:00:17.8]} 41. Nxg6+ {[%clk 0:00:05.6]}
41... Kg5 {[%clk 0:00:18]} 42. Ne5 {[%clk 0:00:05.8]} 42... b6 {[%clk
0:00:15.9]} 43. Nd3 {[%clk 0:00:04.8]} 43... Bc3 {[%clk 0:00:12.1]} 44. Kxg3
{[%clk 0:00:05]} 44... Kf6 {[%clk 0:00:11.1]} 45. f4 {[%clk 0:00:05.9]} 45...
Bf7 {[%clk 0:00:10.3]} 46. Kf3 {[%clk 0:00:05.8]} 46... Bd4 {[%clk 0:00:09.6]}
47. e5+ {[%clk 0:00:05]} 47... Ke7 {[%clk 0:00:09.1]} 48. Ke4 {[%clk 0:00:04.8]}
48... Bg1 {[%clk 0:00:08.3]} 49. f5 {[%clk 0:00:05.7]} 49... Bh5 {[%clk
0:00:07.5]} 50. Bh3 {[%clk 0:00:05.2]} 50... Be2 {[%clk 0:00:06.3]} 51. Nf4
{[%clk 0:00:04.9]} 51... Bd1 {[%clk 0:00:05.5]} 52. f6+ {[%clk 0:00:05.6]} 52...
Kf7 {[%clk 0:00:05.4]} 53. Be6+ {[%clk 0:00:04.8]} 53... Ke8 {[%clk 0:00:05.5]}
54. Kd5 {[%clk 0:00:03.6]} 54... Bf3+ {[%clk 0:00:04.6]} 55. Kd6 {[%clk
0:00:03.4]} 55... Bc5+ {[%clk 0:00:05.1]} 56. Kc7 {[%clk 0:00:03.6]} 56... Be4
{[%clk 0:00:05.3]} 57. f7+ {[%clk 0:00:02.9]} 57... Ke7 {[%clk 0:00:04.5]} 58.
Bd5 {[%clk 0:00:01.8]} 58... Bf5 {[%clk 0:00:04.7]} 59. e6 {[%clk 0:00:02.5]}
59... Bd6+ {[%clk 0:00:04.6]} 60. Kc6 {[%clk 0:00:03.4]} 60... Bxf4 {[%clk
0:00:04.8]} 61. Kxb6 {[%clk 0:00:03.9]} 61... Bd2 {[%clk 0:00:05.2]} 62. c5
{[%clk 0:00:03.6]} 62... Be3 {[%clk 0:00:04.5]} 63. Kb5 {[%clk 0:00:03.3]} 63...
Bd3+ {[%clk 0:00:04.4]} 64. Kb6 {[%clk 0:00:02.4]} 64... Bb1 {[%clk 0:00:03.5]}
65. a3 {[%clk 0:00:03.3]} 65... Ba2 {[%clk 0:00:02.6]} 66. b4 {[%clk 0:00:04.2]}
66... Bxd5 {[%clk 0:00:02.1]} 67. bxa5 {[%clk 0:00:04.3]} 67... Bxe6 {[%clk
0:00:02.3]} 68. a6 {[%clk 0:00:04.5]} 68... Kxf7 {[%clk 0:00:02.3]} 69. a7
{[%clk 0:00:04.3]} 69... Bd5 {[%clk 0:00:02.6]} 70. Kb5 {[%clk 0:00:04.2]} 70...
Ba8 {[%clk 0:00:01]} 71. c6 {[%clk 0:00:03.1]} 71... Ke7 {[%clk 0:00:01.9]} 72.
Ka6 {[%clk 0:00:02.3]} 72... Kd8 {[%clk 0:00:02.8]} 73. a4 {[%clk 0:00:02.4]}
73... Kc7 {[%clk 0:00:03.5]} 74. a5 {[%clk 0:00:02.9]} 74... Bc5 {[%clk
0:00:03.6]} 75. Kb5 {[%clk 0:00:02.6]} 75... Bxa7 {[%clk 0:00:04.5]} 76. Ka6
{[%clk 0:00:03.2]} 76... Bf2 {[%clk 0:00:05.2]} 77. Kb5 {[%clk 0:00:03.8]} 77...
Bxc6+ {[%clk 0:00:05.7]} 78. Ka6 {[%clk 0:00:04.7]} 78... Ba8 {[%clk 0:00:06.2]}
79. Kb5 {[%clk 0:00:04.5]} 79... Bb7 {[%clk 0:00:06.8]} 80. a6 {[%clk
0:00:03.8]} 80... Ba8 {[%clk 0:00:07.1]} 81. Ka5 {[%clk 0:00:04.7]} 81... Kb8
{[%clk 0:00:07.4]} 82. Ka4 {[%clk 0:00:04.8]} 82... Ka7 {[%clk 0:00:08.3]} 83.
Kb5 {[%clk 0:00:05.3]} 83... Be4 {[%clk 0:00:09.2]} 84. Ka5 {[%clk 0:00:05.2]}
84... Bf3 {[%clk 0:00:09.6]} 85. Kb5 {[%clk 0:00:05.2]} 85... Be2+ {[%clk
0:00:10.5]} 86. Ka4 {[%clk 0:00:05.9]} 86... Kxa6 {[%clk 0:00:10.7]} 87. Kb3
{[%clk 0:00:06.3]} 87... Bd4 {[%clk 0:00:10.9]} 88. Kc2 {[%clk 0:00:07.2]} 88...
Be3 {[%clk 0:00:10.2]} 89. Kc3 {[%clk 0:00:06.7]} 89... Kb5 {[%clk 0:00:10.7]}
90. Kb3 {[%clk 0:00:06.6]} 90... Bd2 {[%clk 0:00:11.1]} 91. Kc2 {[%clk
0:00:07.5]} 91... Bb4 {[%clk 0:00:11.5]} 92. Kb3 {[%clk 0:00:06.4]} 92... Bd3
{[%clk 0:00:11.8]} 93. Kb2 {[%clk 0:00:06.9]} 93... Kc4 {[%clk 0:00:12.4]} 94.
Kc1 {[%clk 0:00:07.8]} 94... Be2 {[%clk 0:00:11.5]} 95. Kc2 {[%clk 0:00:06.8]}
95... Bc3 {[%clk 0:00:11.9]} 96. Kc1 {[%clk 0:00:05.8]} 96... Kb3 {[%clk
0:00:12.4]} 97. Kb1 {[%clk 0:00:05.7]} 97... Bd2 {[%clk 0:00:12.9]} 98. Ka1
{[%clk 0:00:05.7]} 98... Bd1 {[%clk 0:00:13.4]} 99. Kb1 {[%clk 0:00:05.8]} 99...
Bc2+ {[%clk 0:00:14]} 100. Ka1 {[%clk 0:00:06.3]} 100... Bc3# {[%clk 0:00:14.6]}
0-1

[Event "*** Titled Tuesday Blitz"]
[Site "Chess.com"]
[Date "2020.11.24"]
[Round "2"]
[White "Andreikka"]
[Black "LiderChessAcademy"]
[Result "1/2-1/2"]
[WhiteElo "2892"]
[BlackElo "2550"]
[TimeControl "180+1"]
[EndTime "10:36:28 PST"]
[Termination "Game drawn by agreement"]

1. d4 {[%clk 0:03:00.9]} 1... Nf6 {[%clk 0:02:58.9]} 2. c4 {[%clk 0:02:59]} 2...
g6 {[%clk 0:02:58.6]} 3. Nc3 {[%clk 0:02:57.2]} 3... d5 {[%clk 0:02:58.5]} 4.
cxd5 {[%clk 0:02:56.3]} 4... Nxd5 {[%clk 0:02:59.4]} 5. e4 {[%clk 0:02:56.5]}
5... Nxc3 {[%clk 0:02:59.7]} 6. bxc3 {[%clk 0:02:56.5]} 6... Bg7 {[%clk
0:03:00.3]} 7. Nf3 {[%clk 0:02:43.5]} 7... c5 {[%clk 0:02:59.9]} 8. Rb1 {[%clk
0:02:39.7]} 8... O-O {[%clk 0:02:56]} 9. Be2 {[%clk 0:02:37.6]} 9... cxd4 {[%clk
0:02:56.2]} 10. cxd4 {[%clk 0:02:37.2]} 10... Qa5+ {[%clk 0:02:56.8]} 11. Bd2
{[%clk 0:02:37.1]} 11... Qxa2 {[%clk 0:02:56.7]} 12. O-O {[%clk 0:02:34.7]}
12... Bg4 {[%clk 0:02:55.1]} 13. Bg5 {[%clk 0:02:33.7]} 13... h6 {[%clk
0:02:44.2]} 14. Bh4 {[%clk 0:02:30.7]} 14... g5 {[%clk 0:02:02.4]} 15. Bg3
{[%clk 0:02:30.1]} 15... Nd7 {[%clk 0:02:01.8]} 16. Rxb7 {[%clk 0:02:16.8]}
16... Rad8 {[%clk 0:01:29.5]} 17. Bc7 {[%clk 0:01:37.7]} 17... Nc5 {[%clk
0:01:07.1]} 18. Bxd8 {[%clk 0:00:59.4]} 18... Nxb7 {[%clk 0:01:05.8]} 19. Bc7
{[%clk 0:00:57.4]} 19... Rc8 {[%clk 0:01:02.1]} 20. Be5 {[%clk 0:00:41.4]} 20...
Nd6 {[%clk 0:00:45.3]} 21. Bxg7 {[%clk 0:00:31.3]} 21... Kxg7 {[%clk 0:00:46.2]}
22. h3 {[%clk 0:00:32.1]} 22... Bh5 {[%clk 0:00:36.7]} 23. Bd3 {[%clk
0:00:24.6]} 23... Rc3 {[%clk 0:00:29.8]} 24. e5 {[%clk 0:00:20.6]} 24... Nc4
{[%clk 0:00:20.7]} 25. Be4 {[%clk 0:00:20.5]} 25... Bxf3 {[%clk 0:00:17.2]} 26.
Bxf3 {[%clk 0:00:16.2]} 26... Nd2 {[%clk 0:00:17.4]} 27. Bd5 {[%clk 0:00:16.8]}
27... Qxd5 {[%clk 0:00:11.7]} 28. Qxd2 {[%clk 0:00:16.6]} 28... Rc4 {[%clk
0:00:12.3]} 29. Rd1 {[%clk 0:00:16.5]} 29... a5 {[%clk 0:00:12.8]} 30. e6 {[%clk
0:00:14.3]} 30... Qxe6 {[%clk 0:00:11.4]} 31. Qxa5 {[%clk 0:00:11.5]} 31... Qf6
{[%clk 0:00:11.4]} 32. d5 {[%clk 0:00:09.1]} 32... Rc2 {[%clk 0:00:11.4]} 33.
Qa7 {[%clk 0:00:08.4]} 33... Qe5 {[%clk 0:00:08.8]} 34. g3 {[%clk 0:00:07.1]}
34... h5 {[%clk 0:00:07.7]} 35. Rf1 {[%clk 0:00:01.3]} 35... Re2 {[%clk
0:00:04.8]} 36. Qc5 {[%clk 0:00:01.5]} 36... h4 {[%clk 0:00:03.7]} 37. g4 {[%clk
0:00:02]} 37... Re4 {[%clk 0:00:01.3]} 38. Qc1 {[%clk 0:00:01.3]} 38... Rf4
{[%clk 0:00:01.7]} 39. Rd1 {[%clk 0:00:02.2]} 39... Qf6 {[%clk 0:00:01.8]} 40.
Rd2 {[%clk 0:00:02.4]} 40... Rf3 {[%clk 0:00:02.5]} 41. Kg2 {[%clk 0:00:02.8]}
41... Rf4 {[%clk 0:00:03]} 42. Qd1 {[%clk 0:00:03.3]} 42... Qe5 {[%clk
0:00:03.4]} 43. Qe2 {[%clk 0:00:03.7]} 43... Qxe2 {[%clk 0:00:03.3]} 44. Rxe2
{[%clk 0:00:04.6]} 44... Kf6 {[%clk 0:00:04.1]} 45. Rd2 {[%clk 0:00:05]} 45...
Ke5 {[%clk 0:00:04.6]} 46. Re2+ {[%clk 0:00:05.1]} 46... Kd6 {[%clk 0:00:05.5]}
47. Rd2 {[%clk 0:00:05.1]} 47... Rc4 {[%clk 0:00:05.7]} 48. Rd3 {[%clk
0:00:04.8]} 48... f6 {[%clk 0:00:06.2]} 49. Re3 {[%clk 0:00:04.2]} 49... Rc5
{[%clk 0:00:07.1]} 50. Re6+ {[%clk 0:00:04.4]} 50... Kd7 {[%clk 0:00:07.7]} 51.
Ra6 {[%clk 0:00:03.9]} 51... Rxd5 {[%clk 0:00:07.9]} 52. Ra8 {[%clk 0:00:04.3]}
52... Ke6 {[%clk 0:00:08.5]} 53. Ra6+ {[%clk 0:00:04.3]} 53... Rd6 {[%clk
0:00:09.4]} 54. Ra4 {[%clk 0:00:04.6]} 54... Kf7 {[%clk 0:00:09.9]} 55. Ra2
{[%clk 0:00:05.2]} 55... Ke6 {[%clk 0:00:10.8]} 56. Ra3 {[%clk 0:00:05.3]} 56...
Kd7 {[%clk 0:00:11.7]} 57. Ra2 {[%clk 0:00:05.6]} 57... Rd5 {[%clk 0:00:11.9]}
58. Rb2 {[%clk 0:00:06.1]} 58... Kd6 {[%clk 0:00:12.7]} 59. Rc2 {[%clk
0:00:06.6]} 59... e6 {[%clk 0:00:12.9]} 60. Ra2 {[%clk 0:00:07.1]} 60... Ke5
{[%clk 0:00:13.3]} 61. Re2+ {[%clk 0:00:07.2]} 61... Kd6 {[%clk 0:00:13.7]} 62.
Ra2 {[%clk 0:00:07.9]} 62... f5 {[%clk 0:00:14.2]} 63. Ra6+ {[%clk 0:00:06.3]}
63... Ke5 {[%clk 0:00:14.2]} 64. gxf5 {[%clk 0:00:06.5]} 64... exf5 {[%clk
0:00:15.1]} 65. Ra4 {[%clk 0:00:06.8]} 65... Rd4 {[%clk 0:00:14.9]} 66. Ra8
{[%clk 0:00:06.3]} 66... Kf4 {[%clk 0:00:14.8]} 67. Rh8 {[%clk 0:00:06.1]} 67...
Re4 {[%clk 0:00:13.2]} 68. Rh7 {[%clk 0:00:06.5]} 68... Ke5 {[%clk 0:00:13.4]}
69. Rh8 {[%clk 0:00:06.2]} 69... Kf6 {[%clk 0:00:13.7]} 70. Rh6+ {[%clk
0:00:05.8]} 70... Kg7 {[%clk 0:00:13.8]} 71. Ra6 {[%clk 0:00:05.7]} 71... Kf7
{[%clk 0:00:12.9]} 72. Rb6 {[%clk 0:00:05.6]} 72... Re6 {[%clk 0:00:12.4]} 73.
Rb8 {[%clk 0:00:06.3]} 73... Kf6 {[%clk 0:00:12.6]} 74. Rh8 {[%clk 0:00:06.5]}
74... Ke5 {[%clk 0:00:12.1]} 75. Rh7 {[%clk 0:00:06.6]} 75... Rg6 {[%clk
0:00:11.7]} 76. Rh8 {[%clk 0:00:06.6]} 76... Kf4 {[%clk 0:00:11.8]} 77. Rh7
{[%clk 0:00:06.1]} 77... Ke5 {[%clk 0:00:11.8]} 78. Rh8 {[%clk 0:00:05.9]} 78...
Kf6 {[%clk 0:00:12.2]} 79. Rh7 {[%clk 0:00:05.1]} 79... Rg7 {[%clk 0:00:10.8]}
80. Rh8 {[%clk 0:00:05.3]} 80... Kg6 {[%clk 0:00:10.6]} 81. Ra8 {[%clk
0:00:05.3]} 81... g4 {[%clk 0:00:10]} 82. hxg4 {[%clk 0:00:04.1]} 82... fxg4
{[%clk 0:00:10.9]} 83. Ra5 {[%clk 0:00:04]} 83... Rf7 {[%clk 0:00:10.8]} 84. Rc5
{[%clk 0:00:03.6]} 84... Rf5 {[%clk 0:00:10.8]} 85. Rc8 {[%clk 0:00:03.2]} 85...
Kg5 {[%clk 0:00:10.6]} 86. Rg8+ {[%clk 0:00:03.8]} 86... Kf4 {[%clk 0:00:10.9]}
87. Ra8 {[%clk 0:00:04.4]} 87... h3+ {[%clk 0:00:11.8]} 88. Kg1 {[%clk
0:00:04.3]} 88... Re5 {[%clk 0:00:10.7]} 89. Ra4+ {[%clk 0:00:04.9]} 89... Re4
{[%clk 0:00:11]} 90. Ra1 {[%clk 0:00:05.3]} 90... Kf3 {[%clk 0:00:10.7]} 91.
Ra3+ {[%clk 0:00:05.5]} 91... Kf4 {[%clk 0:00:11.1]} 92. Ra1 {[%clk 0:00:05.7]}
92... Re2 {[%clk 0:00:11.2]} 93. Rb1 {[%clk 0:00:05.5]} 93... Kg5 {[%clk
0:00:08.5]} 94. Ra1 {[%clk 0:00:05]} 94... Kh4 {[%clk 0:00:08.7]} 95. Rb1 {[%clk
0:00:05.2]} 95... h2+ {[%clk 0:00:09]} 96. Kxh2 {[%clk 0:00:04.3]} 96... Rxf2+
{[%clk 0:00:09.3]} 97. Kg1 {[%clk 0:00:05]} 97... Ra2 {[%clk 0:00:09]} 98. Rc1
{[%clk 0:00:05]} 98... Kh3 {[%clk 0:00:08.9]} 99. Rb1 {[%clk 0:00:05.2]} 99...
Re2 {[%clk 0:00:07.5]} 100. Ra1 {[%clk 0:00:05.1]} 100... Rg2+ {[%clk
0:00:07.5]} 101. Kh1 {[%clk 0:00:04.9]} 101... Re2 {[%clk 0:00:07.7]} 102. Rb1
{[%clk 0:00:05.2]} 102... g3 {[%clk 0:00:07.9]} 103. Kg1 {[%clk 0:00:05.7]}
103... Rd2 {[%clk 0:00:07.2]} 104. Ra1 {[%clk 0:00:05.6]} 1/2-1/2